Posting Date,Expenditure Area,Supplier Name,Amount,Expense Type,Reason for Expense
21-Sep-20,Corporate Management Team,Trainline,101.70,Use Of Public Transport,Travel cost for training course
25-Sep-20,Culture & Environment Services,Amazon.Co.Uk,16.66,Equipment / Furniture / Materials,Free standing 'floor' mic stand
25-Sep-20,Culture & Environment Services,Amazon.Co.Uk,10.42,Equipment / Furniture / Materials,Tea bags for bearers and crem
28-Sep-20,Culture & Environment Services,Amazon.Co.Uk,337.14,Printing Costs,Printing ink
01-Sep-20,Culture & Environment Services,Amazon.Co.Uk,14.57,Stationery,Stationery for the Ark - PARK PATROL
21-Sep-20,Culture & Environment Services,Amazon.Co.Uk,17.39,Stationery,ink
22-Sep-20,Culture & Environment Services,Amznmktplace,4.99,Cleaning Supplies,clip frame for qr code
08-Sep-20,Culture & Environment Services,Amznmktplace,46.61,Computer Software - Maintenance,equip for Sports centres
08-Sep-20,Culture & Environment Services,Amznmktplace,6.58,Computer Software - Maintenance,equip sports centres
09-Sep-20,Culture & Environment Services,Amznmktplace,74.96,Computer Software - Maintenance,equip for sport centres
09-Sep-20,Culture & Environment Services,Amznmktplace,44.95,Computer Software - Maintenance,equip for Sports Centres
25-Sep-20,Culture & Environment Services,Amznmktplace,19.94,Computer Software - Maintenance,items
11-Sep-20,Culture & Environment Services,Amznmktplace,4.98,Equipment / Furniture / Materials,Stick back plastic for masonry temp. markers
24-Sep-20,Culture & Environment Services,Amznmktplace,12.75,Equipment / Furniture / Materials,Milk Sachets for bearers room
25-Sep-20,Culture & Environment Services,Amznmktplace,112.49,Equipment / Furniture / Materials,Additional Shelving for crem
25-Sep-20,Culture & Environment Services,Amznmktplace,30.00,Equipment / Furniture / Materials,Coffee for bearers
25-Sep-20,Culture & Environment Services,Amznmktplace,25.23,Equipment / Furniture / Materials,Coffee for crem
30-Sep-20,Culture & Environment Services,Amznmktplace,25.83,Equipment / Furniture / Materials,disposable cups for bearers room (500)
30-Sep-20,Culture & Environment Services,Amznmktplace,5.54,Equipment / Furniture / Materials,Disposable teaspoons for bearers room
14-Sep-20,Culture & Environment Services,Amznmktplace,21.63,Materials and Supplies - Miscellaneous,2 x Multi Charger Cables and 2 x Car Charger USB Adapters
17-Sep-20,Culture & Environment Services,Amznmktplace,21.12,Materials and Supplies - Miscellaneous,Phone case and screen protector
16-Sep-20,Culture & Environment Services,Amznmktplace Amazon.Co.Uk,13.06,Computer Consumables and other Minor IT costs,2x USB cables
10-Sep-20,Culture & Environment Services,Amznmktplace Amazon.Co.Uk,22.66,Equipment / Furniture / Materials,Toner cartridge for crem
18-Sep-20,Culture & Environment Services,Anglian Security&fire,145.00,Equipment / Furniture / Materials,7 Security Fobs & Engineer on site to programme them all
17-Sep-20,Culture & Environment Services,Argos Ltd,27.08,Equipment / Furniture / Materials,Batteries for HEARS smoke detectors
11-Sep-20,Culture & Environment Services,Attachment Solutions L,788.63,Miscellaneous Stock  - Purchases,Repair to Arrowhead R40 Breaker - LANDSCAPE TEAM
09-Sep-20,Culture & Environment Services,B & Q 1315,3.50,Cleaning Supplies,Spray Bottles various sizes
24-Sep-20,Culture & Environment Services,B & Q 1315,28.53,Miscellaneous Stock  - Purchases,Postcrete - BRIDGEWOOD CAR PARK
08-Sep-20,Culture & Environment Services,B & Q 1336,67.40,Miscellaneous Stock  - Purchases,Postcrete - LANDSCAPE TEAM
15-Sep-20,Culture & Environment Services,B&q Direct,31.41,Equipment / Furniture / Materials,Felt and sealant for dugout roof. Plus WD40.
04-Sep-20,Culture & Environment Services,Cpw Locksmiths And Securi,128.33,Equipment / Furniture / Materials,Essential centres keys cut
08-Sep-20,Culture & Environment Services,Cpw Locksmiths And Securi,5.00,Equipment / Furniture / Materials,Key Cutting
02-Sep-20,Culture & Environment Services,Cpw Locksmiths And Securi,30.00,Materials and Supplies - Miscellaneous,key cutting for bin stores
02-Sep-20,Culture & Environment Services,Crystal Health Group Limi,40.83,Equipment / Furniture / Materials,HR services
24-Sep-20,Culture & Environment Services,Crystal Health Group Limi,145.00,Equipment / Furniture / Materials,HR services
29-Sep-20,Culture & Environment Services,Crystal Health Group Limi,49.00,Equipment / Furniture / Materials,HR services
07-Sep-20,Culture & Environment Services,Defib Pad,249.00,Materials and Supplies - Miscellaneous,Replacement Battery for Defib
08-Sep-20,Culture & Environment Services,Dvla Vehicle Tax,302.50,Direct Transport Costs,Vehicle Tax for AE62 ABU
08-Sep-20,Culture & Environment Services,Dvla Vehicle Tax,267.50,Direct Transport Costs,Vehicle Tax for AE64 SNF
08-Sep-20,Culture & Environment Services,Dvla Vehicle Tax,267.50,Direct Transport Costs,Vehicle Tax for AE64 SNJ
08-Sep-20,Culture & Environment Services,Dvla Vehicle Tax,267.50,Direct Transport Costs,Vehicle Tax for AE64 SNK
08-Sep-20,Culture & Environment Services,Dvla Vehicle Tax,267.50,Direct Transport Costs,Vehicle Tax for AE64 SNN
08-Sep-20,Culture & Environment Services,Dvla Vehicle Tax,267.50,Direct Transport Costs,Vehicle Tax for AE64 SNU
08-Sep-20,Culture & Environment Services,Dvla Vehicle Tax,267.50,Direct Transport Costs,Vehicle Tax for AE64 SNV
08-Sep-20,Culture & Environment Services,Dvla Vehicle Tax,267.50,Direct Transport Costs,Vehicle Tax for AE64 SNX
08-Sep-20,Culture & Environment Services,Dvla Vehicle Tax,267.50,Direct Transport Costs,Vehicle Tax for AE64 SNY
08-Sep-20,Culture & Environment Services,Dvla Vehicle Tax,267.50,Direct Transport Costs,Vehicle Tax for AE64 SNZ
08-Sep-20,Culture & Environment Services,Dvla Vehicle Tax,267.50,Direct Transport Costs,Vehicle Tax for AV60 HHL
08-Sep-20,Culture & Environment Services,Dvla Vehicle Tax,267.50,Direct Transport Costs,Vehicle Tax for AV61 RHU
02-Sep-20,Culture & Environment Services,Ellenbrook,23.22,Direct Transport Costs,20.23l petrol for machines.
03-Sep-20,Culture & Environment Services,Entreprenadbutiken I Gote,589.90,Materials and Supplies - Miscellaneous,hedge cutter and battery
25-Sep-20,Culture & Environment Services,Fr Jones And Son Ltd,108.33,Equipment / Furniture / Materials,climbing rope
23-Sep-20,Culture & Environment Services,Go Outdoors,16.65,Equipment / Furniture / Materials,Net for cleaning the waterfront
02-Sep-20,Culture & Environment Services,Gripfixings Ipswich,17.49,Materials and Supplies - Miscellaneous,Resin for bench installation - CHANTRY HUB
16-Sep-20,Culture & Environment Services,Groundsman Tools And Supp,13.47,Clothing / Uniform & Laundry,Safety visor
16-Sep-20,Culture & Environment Services,Groundsman Tools And Supp,94.14,Materials and Supplies - Miscellaneous,Different size spray nozzles.
17-Sep-20,Culture & Environment Services,Home Bargains,11.59,Cleaning Supplies,Cleaning Products - CHRISTCHURCH PARK
08-Sep-20,Culture & Environment Services,Honey Brothers Ltd,206.32,Clothing / Uniform & Laundry,"Safety Glove, Glasses and FA Kit."
24-Sep-20,Culture & Environment Services,Horticultural Sppls Ltd,8.18,Materials and Supplies - Miscellaneous,Chemicals - CHANTRY HUB
23-Sep-20,Culture & Environment Services,J P Lennard Ltd,98.83,Equipment / Furniture / Materials,replacement thermometer
16-Sep-20,Culture & Environment Services,Jayar Car Parts,47.10,Materials and Supplies - Miscellaneous,Light Bulbs for Vehicles
17-Sep-20,Culture & Environment Services,Kings,25.00,Materials and Supplies - Miscellaneous,2 x new keys cut
25-Sep-20,Culture & Environment Services,Kings,45.83,Materials and Supplies - Miscellaneous,Multiple Keys Cut
28-Sep-20,Culture & Environment Services,Kite On Line Terminal,265.77,Equipment / Furniture / Materials,TIC packaging - boxes and wrap
23-Sep-20,Culture & Environment Services,Leisureteq,310.00,Equipment / Furniture / Materials,pool repair parts
11-Sep-20,Culture & Environment Services,Lumberjacks,9.42,Equipment / Furniture / Materials,Fixings for bin repair - MAPLE PARK - PLAY AREA INSPECTOR
02-Sep-20,Culture & Environment Services,Lumberjacks,12.45,Miscellaneous Stock  - Purchases,100m Nails - SPROUGHTON
30-Sep-20,Culture & Environment Services,Lumberjacks,4.17,Miscellaneous Stock  - Purchases,Nails - SPROUGHTON
11-Sep-20,Culture & Environment Services,Machine Mart Ltd,23.98,Equipment / Furniture / Materials,Purchase of Bolt Cutters and Spray Bottle
24-Sep-20,Culture & Environment Services,Machine Mart Ltd,11.97,Materials and Supplies - Miscellaneous,Grease for Tractor - CHANTRY HUB
28-Sep-20,Culture & Environment Services,Machine Mart Ltd,17.97,Materials and Supplies - Miscellaneous,Tools for Park Patrol
18-Sep-20,Culture & Environment Services,Manomano,86.08,Materials and Supplies - Miscellaneous,Blue hand paper roll
04-Sep-20,Culture & Environment Services,Martin McColl,7.75,Equipment / Furniture / Materials,batteries
08-Sep-20,Culture & Environment Services,Net World Sports,73.22,Equipment / Furniture / Materials,Flat disk markers for indoor classes.
18-Sep-20,Culture & Environment Services,Northernarbsupplies,144.16,Materials and Supplies - Miscellaneous,Chain saw oil
28-Sep-20,Culture & Environment Services,Paypal,75.00,Clothing / Uniform & Laundry,Winter work trousers for Ranger Team
10-Sep-20,Culture & Environment Services,Paypal,5.03,Equipment / Furniture / Materials,replacement mirror glass
30-Sep-20,Culture & Environment Services,Pirtek Ipswich,70.60,Materials and Supplies - Miscellaneous,Hydraulic Oil - ARB TEAM
16-Sep-20,Culture & Environment Services,Pirtek Ipswich,70.60,Miscellaneous Stock  - Purchases,HydOil for mini digger -LANDSCAPE TEAM
08-Sep-20,Culture & Environment Services,Pneumatics Direct,1.60,Equipment / Furniture / Materials,replacement nozzle for footpump
23-Sep-20,Culture & Environment Services,Post Office Counter,3.08,Materials and Supplies - Miscellaneous,Postage for servicing item - CHANTRY HUB
30-Sep-20,Culture & Environment Services,Post Office Counter,1.37,Materials and Supplies - Miscellaneous,letter
22-Sep-20,Culture & Environment Services,Powertoolsgb,769.00,Materials and Supplies - Miscellaneous,kango breaker
18-Sep-20,Culture & Environment Services,Roundwood Service Station,29.98,Materials and Supplies - Miscellaneous,ad blue
22-Sep-20,Culture & Environment Services,Ryman,13.31,Equipment / Furniture / Materials,Velcro Signage tabs and A3 paper
02-Sep-20,Culture & Environment Services,Sainsburys S/mkt,1.83,Materials and Supplies - Miscellaneous,Sundries for Waste Services
24-Sep-20,Culture & Environment Services,Sainsburys S/mkt,0.92,Materials and Supplies - Miscellaneous,Sundries for Waste Services
14-Sep-20,Culture & Environment Services,Sainsburys S/mkts,6.67,Equipment / Furniture / Materials,Batteries For F/S Clubroom Fire Door Mech
10-Sep-20,Culture & Environment Services,Sainsburys S/mkts,2.50,Materials and Supplies - Miscellaneous,Sundries for Waste Services
21-Sep-20,Culture & Environment Services,Sainsburys S/mkts,20.17,Materials and Supplies - Miscellaneous,Kettle for the Mess Room
21-Sep-20,Culture & Environment Services,Sainsburys S/mkts,0.92,Materials and Supplies - Miscellaneous,Sundries for Waste Services
08-Sep-20,Culture & Environment Services,Savers Health & Beauty,8.32,Cleaning Supplies,sanitiser
25-Sep-20,Culture & Environment Services,Screwfix Dir. Ltd,20.82,Equipment / Furniture / Materials,Helmet for chipper
07-Sep-20,Culture & Environment Services,Screwfix Direct,21.39,Cleaning Supplies,Outdoor sprayers for cleaning goals etc. plus spray paint
08-Sep-20,Culture & Environment Services,Screwfix Direct,60.81,Clothing / Uniform & Laundry,Work trousers for Landscape Team
10-Sep-20,Culture & Environment Services,Screwfix Direct,60.82,Clothing / Uniform & Laundry,Work Boots for Landscape Team
22-Sep-20,Culture & Environment Services,Screwfix Direct,36.44,Equipment / Furniture / Materials,Tape and ties for toilet QR signage
23-Sep-20,Culture & Environment Services,Screwfix Direct,17.10,Equipment / Furniture / Materials,Pliers to remove cable ties
25-Sep-20,Culture & Environment Services,Screwfix Direct,20.82,Equipment / Furniture / Materials,Helmet for chipper
25-Sep-20,Culture & Environment Services,Screwfix Direct,20.82,Equipment / Furniture / Materials,Helmet for chipper
25-Sep-20,Culture & Environment Services,Screwfix Direct,20.82,Equipment / Furniture / Materials,Helmet for chipper
10-Sep-20,Culture & Environment Services,Screwfix Direct,12.47,Miscellaneous Stock  - Purchases,Bolt fixings -LANDSCAPE TEAM
10-Sep-20,Culture & Environment Services,Screwfix Direct,19.75,Miscellaneous Stock  - Purchases,Screws/Rivets - LANDSCAPE TEAM
14-Sep-20,Culture & Environment Services,Screwfix Direct,-11.85,Miscellaneous Stock  - Purchases,refund for wrong bolt fixings - LANDSCAPE TEAM
10-Sep-20,Culture & Environment Services,Seton,125.98,Equipment / Furniture / Materials,Covid recovery - mirrors purchased - TownHall cafe reopening
03-Sep-20,Culture & Environment Services,Sharman Caravans Limited,6.42,Materials and Supplies - Miscellaneous,Accessory
07-Sep-20,Culture & Environment Services,Sharman Caravans Limited,10.00,Materials and Supplies - Miscellaneous,Groundpegs - Whitton
03-Sep-20,Culture & Environment Services,The Range,2.49,Equipment / Furniture / Materials,Sand
15-Sep-20,Culture & Environment Services,The Range,18.31,Materials and Supplies - Miscellaneous,"Kettle (barn), metal files (sharpening) and foot pump."
07-Sep-20,Culture & Environment Services,The Windscreen Co,96.00,Direct Transport Costs,Chip Repair for AY69 OJE
14-Sep-20,Culture & Environment Services,The Windscreen Co,60.00,Direct Transport Costs,2 x chip repairs for LG15 BXW
02-Sep-20,Culture & Environment Services,Timpson Ltd,14.58,Equipment / Furniture / Materials,Additional keys
11-Sep-20,Culture & Environment Services,Toolstation Ltd,15.75,Equipment / Furniture / Materials,Fixing for a bin repair - MAPLE PARK - PLAY AREA INSPECTOR
11-Sep-20,Culture & Environment Services,Victoria Nurseries,74.97,Materials and Supplies - Miscellaneous,Large Plant boxes - CHRISTCHURCH HUB
28-Sep-20,Culture & Environment Services,Wh Smith,8.32,Stationery,Stationery for waste services
03-Sep-20,Culture & Environment Services,Wickes Ipswich,14.37,Materials and Supplies - Miscellaneous,Timber - GOAL POSTS - HOLYWELLS HUB
15-Sep-20,Culture & Environment Services,Wickes Ipswich,56.98,Materials and Supplies - Miscellaneous,grave boards
24-Sep-20,Culture & Environment Services,Wickes Ipswich,41.08,Materials and Supplies - Miscellaneous,Wood stain & material for bench install - CHANTRY HUB
29-Sep-20,Culture & Environment Services,Wickes Ipswich,194.48,Materials and Supplies - Miscellaneous,grave boards
16-Sep-20,Culture & Environment Services,Www.Allterraintyres.Co,21.44,Equipment / Furniture / Materials,3 inner tubes for mower tyres
07-Sep-20,Culture & Environment Services,Www.Banneruk.Com,10.42,Stationery,stationary -waste office
15-Sep-20,Culture & Environment Services,Www.Banneruk.Com,3.54,Stationery,stationary - waste office
07-Sep-20,Culture & Environment Services,Www.Bigtyres.Co.Uk,44.00,Equipment / Furniture / Materials,replacement tyre for large mower
08-Sep-20,Culture & Environment Services,Www.Clarkforest.Com,196.50,Materials and Supplies - Miscellaneous,Chain saw oil
16-Sep-20,Culture & Environment Services,Www.Flags.Co.Uk,223.86,Equipment / Furniture / Materials,2 x Ipswich and 1 x Ipswich Borough Flag for Town Hall
02-Sep-20,Culture & Environment Services,Www.Kedel.Co.Uk,409.46,Materials and Supplies - Miscellaneous,rose stakes
09-Sep-20,Culture & Environment Services,Www.Lifesaversdirect,178.33,Training Expenses,training
10-Sep-20,Culture & Environment Services,Www.Lifesaversdirect,350.00,Training Expenses,training
24-Sep-20,Culture & Environment Services,Www.Lifesaversdirect,105.83,Training Expenses,training items
28-Sep-20,Culture & Environment Services,Www.Lifesaversdirect,31.00,Training Expenses,training aids
30-Sep-20,Culture & Environment Services,Www.Lifesaversdirect,27.80,Training Expenses,training items
14-Sep-20,Culture & Environment Services,Www.Sportclox..Com,70.17,Equipment / Furniture / Materials,signage for Fore street
17-Sep-20,Culture & Environment Services,Www.Sportclox..Com,92.17,Equipment / Furniture / Materials,signage for Crown Pools
28-Sep-20,Culture & Environment Services,Zoro Uk,64.08,Clothing / Uniform & Laundry,Arb Gloves
15-Sep-20,Development,Amznmktplace,8.32,Equipment / Furniture / Materials,Fridge thermometers to monitor temps for milk storage
21-Sep-20,Development,Asda Stores 4278,3.63,Equipment / Furniture / Materials,milk
21-Sep-20,Development,Asda Stores 4278,10.60,Reactive Repairs,water testing
23-Sep-20,Development,Batterystation.Co.Uk,23.32,Premises Costs - Miscellaneous,batteries
04-Sep-20,Development,Castle Industrial,39.00,GF_Contract Repair & Maintenance,Castle Industrial purchase
11-Sep-20,Development,Gardening Delights,87.33,Materials and Supplies - Miscellaneous,Compost bags for mini kitchen brown bins
29-Sep-20,Development,Horizon Environment Sr,49.75,Premises Costs - Miscellaneous,pest control
29-Sep-20,Development,Proconferences.Com,424.99,Training Expenses,training 
28-Sep-20,Development,Sainsburys S/mkts,10.75,Premises Costs - Miscellaneous,timer plug
02-Sep-20,Development,The Chartered Associatio,210.00,Employee Expenses,20/21 Membership Fees
02-Sep-20,Development,Www Cbuilde Com,210.00,Employee Expenses,20/21 Membership Fees
04-Sep-20,Development,Www Cbuilde Com,275.00,Employee Expenses,20/21 Membership Fees
07-Sep-20,Development,Www Cbuilde Com,185.00,Subscriptions - Service Related,20/21 Membership Fees
04-Sep-20,Development,"Www,eastsuffolk.Gov.Uk",96.00,Non Contracted_Professional Services,Partnership Inspections
23-Sep-20,Development,"Www,eastsuffolk.Gov.Uk",384.00,Non Contracted_Professional Services,Partnership Inspections
29-Sep-20,Development,"Www,eastsuffolk.Gov.Uk",96.00,Non Contracted_Professional Services,Partnership Inspections
04-Sep-20,Development,Www.Banneruk.Com,5.76,Stationery,Notepad (Enforcement)
22-Sep-20,Finance & Revenues,Amznmktplace,67.50,Computer Equipment - Purchase,3 x Dell AC Adapters - IT Stock
24-Sep-20,Finance & Revenues,Amznmktplace,79.98,Computer Equipment - Purchase,2 x All In One HP Printers
10-Sep-20,Finance & Revenues,Amznmktplace,13.32,Equipment / Furniture / Materials,Camera charger 
18-Sep-20,Finance & Revenues,Amznmktplace,15.98,Equipment / Furniture / Materials,Velcro Ties Cable tidy - 200
25-Sep-20,Finance & Revenues,Cbt Nuggets Llc,47.88,Training Expenses,ICT Training
21-Sep-20,Finance & Revenues,Dri*,283.33,Computer Equipment - Purchase,Teams tablet for GH reception
21-Sep-20,Finance & Revenues,Dri*,234.40,Computer Software - Purchase,5 x PDF Xchange licenses
21-Sep-20,Finance & Revenues,Kenable Ltd,66.09,Computer Equipment - Purchase,24 x Spare VGA Cables
21-Sep-20,Finance & Revenues,Paypal,180.66,Computer Equipment - Purchase,Wipeable keyboards for GH reception
07-Sep-20,Finance & Revenues,Service Fees - Fraedom Pty Ltd,383.15,Computer Software - Maintenance,Fraedom card fees 01/08/20 to 31/08/20
08-Sep-20,Finance & Revenues,Sp * Imaging-Superstor,65.00,Equipment / Furniture / Materials,Scanner cleaning kit
16-Sep-20,Finance & Revenues,Www.Aat-Org.Uk,99.00,Employee Expenses,AAT Subscription 
28-Sep-20,Housing & Community Services,Allpay *the Guinness Part,225.24,Services for Clients,RIA
28-Sep-20,Housing & Community Services,Amazon Prime,0.99,Equipment / Furniture / Materials,Amazon Prime
28-Sep-20,Housing & Community Services,Amznmktplace,96.60,Equipment / Furniture / Materials,To allow team briefs to be had from vehicles moving forwards
01-Sep-20,Housing & Community Services,Amznmktplace,33.25,Miscellaneous Expenses,2 notice boards for Dundee House lobby area
04-Sep-20,Housing & Community Services,Chartered Institute Of En,145.00,Training Expenses,Housing and health conference
11-Sep-20,Housing & Community Services,Chartered Institute Of En,169.00,Training Expenses,Interview to become certified EHP 
15-Sep-20,Housing & Community Services,Cpw Locksmiths And Securi,80.00,HRA Special Repairs & Maintenance,repair/replace/renew lock/keys to sheltered properties
28-Sep-20,Housing & Community Services,Cpw Locksmiths And Securi,8.33,HRA Special Repairs & Maintenance,repair/replace/renew lock/keys to sheltered properties
28-Sep-20,Housing & Community Services,Cpw Locksmiths And Securi,8.33,HRA Special Repairs & Maintenance,repair/replace/renew lock/keys to sheltered properties
11-Sep-20,Housing & Community Services,Cpw Locksmiths And Securi,162.00,Non Contracted_Professional Services,Locksmith services 
11-Sep-20,Housing & Community Services,Cpw Locksmiths And Securi,-27.00,Non Contracted_Professional Services,Overpayment for services 
03-Sep-20,Housing & Community Services,Easyhotel Ipswich,182.64,Services for Clients,Accom for BC
09-Sep-20,Housing & Community Services,Easyhotel Ipswich,211.43,Services for Clients,Accom CB
16-Sep-20,Housing & Community Services,Easyhotel Ipswich,226.93,Services for Clients,BC B & B
24-Sep-20,Housing & Community Services,Easyhotel Ipswich,420.16,Services for Clients,Accom BC
03-Sep-20,Housing & Community Services,Eoe Co-Op,20.00,Materials and Supplies - Miscellaneous,Electric
21-Sep-20,Housing & Community Services,Gen Register Office,14.00,Specific Campaigns / Projects expenditure,Birth certificate for rough sleeper now in temp accom
25-Sep-20,Housing & Community Services,Greater Anglia T/o,44.70,Specific Campaigns / Projects expenditure,Train Ticket for RSI client to get to Embassy for his ID
23-Sep-20,Housing & Community Services,Hm Passport Office,85.00,Specific Campaigns / Projects expenditure,Passport for Rough sleeper who is now in temp accom
04-Sep-20,Housing & Community Services,Johnson Cleaners UK Lt,21.00,Laundry Costs,Dry cleaning white coats
07-Sep-20,Housing & Community Services,Mpd - Ipswich 03,43.16,Capital Expenditure,"Batteries to keep machine running, no electrics when opened"
07-Sep-20,Housing & Community Services,Mpd - Ipswich 03,129.48,Capital Expenditure,"Batteries to keep machine running, no electrics when opened"
21-Sep-20,Housing & Community Services,Parcel2go.Com Ltd,6.75,Postage Costs,Returning cash boxes that were damaged / we no longer need
09-Sep-20,Housing & Community Services,Post Office Counter,2.04,Stationery,Recorded delivery Scheme TV licence renewal
24-Sep-20,Housing & Community Services,Propertymark,90.00,Training Expenses,Ongoing training costs with ARLA 
07-Sep-20,Housing & Community Services,Sequence UK Ltd Re Conn,144.00,Services for Clients,Holding fee
11-Sep-20,Housing & Community Services,Suffolk County Council,11.00,Miscellaneous Expenses,Birth cert from SCC for tenant
02-Sep-20,Housing & Community Services,Www.Banneruk.Com,191.29,Stationery,Stationery
22-Sep-20,Housing & Community Services,Www.Banneruk.Com,128.18,Stationery,Stationery
08-Sep-20,People & Governance,Adobe Stock,29.99,Computer Consumables and other Minor IT costs,Image Credits
16-Sep-20,People & Governance,Amznmktplace,17.49,Miscellaneous Stock  - Purchases,A4 Laminates for print room use
18-Sep-20,People & Governance,Hopin,149.00,Training Expenses,Cifas virtual Annual Conference
14-Sep-20,People & Governance,Mailchimp,505.58,Subscriptions - Service Related,MailChimp
28-Sep-20,People & Governance,Mailchimp,264.10,Subscriptions - Service Related,Mailchimp
16-Sep-20,People & Governance,Marks&spencer Plc,375.00,Specific Campaigns / Projects expenditure,Retirement Giftcard 
14-Sep-20,People & Governance,Parcel2go.Com Ltd,12.67,Postage Costs,Postage Charge for sending Tender Documents
21-Sep-20,People & Governance,Parcel2go.Com Ltd,11.09,Postage Costs,"Postage Charge for printing done for BMSDC, recharged on"
18-Sep-20,People & Governance,Shopify* 88816703,23.22,Financial Fees & Services,Made in Suffolk online shop
10-Sep-20,People & Governance,Sportsdirect.Com,230.00,Specific Campaigns / Projects expenditure,Retirement giftcard
17-Sep-20,People & Governance,"Sprout Social, Inc",759.75,Subscriptions - Service Related,Social media management software
14-Sep-20,People & Governance,Surveymonkey,320.00,Subscriptions - Service Related,Survey Monkey Annual Subscription
25-Sep-20,People & Governance,Tesco Store 2748,10.83,Computer Consumables and other Minor IT costs,Ink Cartridges for Cllr Rudkin and Sheltered Housing
25-Sep-20,People & Governance,Tesco Store 2748,31.67,Computer Consumables and other Minor IT costs,Ink Cartridges for Cllr Rudkin and Sheltered Housing
03-Sep-20,People & Governance,Www.Banneruk.Com,229.10,Miscellaneous Stock  - Purchases,Envelopes - different sizes for Print Room Use
28-Sep-20,People & Governance,Www.Banneruk.Com,69.84,Miscellaneous Stock  - Purchases,A4 Laminates for print room use
30-Sep-20,People & Governance,Www.Paper.Co.Uk,188.31,Miscellaneous Stock  - Purchases,Various specialist paper for the print room
15-Sep-20,People & Governance,Zoom.Gbp,55.98,Specific Campaigns / Projects expenditure,To enable virtual council meetings
